Cogmind - Beta 15 @@@ ROGUE MODE // 2025.05.08 @ 15:22:20 Player: Skysub Result: Destroyed by Z7-GKW(R) with Subdweller Laser Performance ------------- Evolutions (0) 0 Regions Visited (2) 400 Robots Destroyed (11) 55 Value Destroyed (332) 332 Prototype IDs (0) 0 Alien Tech Used (0) 0 Bonus (0) 0 TOTAL SCORE: 787 Bonus ------- None Cogmind --------- Core Integrity 0/250 Matter 300/300 Energy 250/250 System Corruption 0% Temperature Cool (6) Movement Rolling (120) Ox1 Location -10/Subcaves Parts ------- > --- POWER (1) -------- Ion Engine > --- PROPULSION (2) --- Subdweller Monowheel > --- UTILITY (2) ------ Large Storage Unit > --- WEAPON (2) ------- Battle Rifle Subdweller Machine Gun > --- INVENTORY (15) --- Subdweller Power Source Disposable Heat Sink Disposable Heat Sink Disposable Heat Sink Small Storage Unit Subdweller Optics Sensor Array Signal Interpreter Improved Terrain Scanner Scrap Shield Subdweller Machine Gun Subdweller Machine Gun Scrap Shield Fragment (49) Scrap Shield Fragment (47) Peak State ------------ > --- POWER ------------ Ion Engine > --- PROPULSION ------- Light Treads Light Treads > --- UTILITY ---------- Large Storage Unit Improved Terrain Scanner > --- WEAPON ----------- Battle Rifle Subdweller Machine Gun > --- INVENTORY -------- Subdweller Power Source Disposable Heat Sink Disposable Heat Sink Small Storage Unit Subdweller Optics Sensor Array Signal Interpreter Light Armor Plating Scrap Shield Scrap Shield Fragment Scrap Shield Fragment [Rating: 13] Favorites ----------- Power Ion Engine Engine Ion Engine Propulsion Compact Wheel Treads Light Treads Wheel Compact Wheel Utility Large Storage Unit Device Improved Terrain Scanner Storage Large Storage Unit Protection Light Armor Plating Weapon Light Assault Rifle Energy Gun EM Pulse Gun Ballistic Gun Light Assault Rifle Build | -11 -10 -10 ------- Run | Yrd Mat Sub Slots Evolved . | . . . Power . | . . . Propulsion . | . . . Utility . | . . . Weapon . | . . . Parts Attached 16 | 7 1 8 Power 2 | 1 . 1 Engine 2 | 1 . 1 Core . | . . . Reactor . | . . . Propulsion 5 | 2 . 3 Treads 2 | . . 2 Leg . | . . . Wheel 3 | 2 . 1 Hover . | . . . Flight . | . . . Utility 4 | 2 1 1 Device 1 | 1 . . Storage 2 | 1 1 . Processor . | . . . Hackware . | . . . Protection 1 | . . 1 Artifact . | . . . Weapon 5 | 2 . 3 Energy Gun 1 | 1 . . Energy Cannon . | . . . Ballistic Gun 4 | 1 . 3 Ballistic Cannon . | . . . Launcher . | . . . Special Weapon . | . . . Impact Weapon . | . . . Slashing Weapon . | . . . Piercing Weapon . | . . . Special Melee Weapon . | . . . Unidentified Prototypes . | . . . Parts Lost 7 | . . 7 Power 1 | . . 1 Propulsion 4 | . . 4 Utility 1 | . . 1 Weapon 1 | . . 1 Highest Loss Streak 3 | . . 3 To Critical Strikes 1 | . . 1 Average Backups 9 | 2 6 10 Power 1 | . 1 1 Propulsion 1 | 1 2 1 Utility 5 | . 3 7 Weapon . | . . . Tool/Special . | . . . Unused Backups 10 | . . 10 Power 1 | . . 1 Propulsion . | . . . Utility 8 | . . 8 Weapon 1 | . . 1 Tool/Special . | . . . Average Slot Usage (%) 98 | . 100 97 Engine 13 | . 14 13 Treads 5 | . . 7 Wheel 21 | . 28 19 Device 10 | . 14 9 Storage 14 | . 14 14 Protection 2 | . . 3 Energy Gun 4 | . 14 1 Ballistic Gun 23 | . 14 26 Peak Build Rating 13 | 9 9 13 Average Rating 10 | 5 9 10 On Entrance 6 | . 9 9 Naked Turns . | . . . Heaviest Build 34 | 14 29 34 Greatest Support 40 | 26 26 40 Greatest Overweight (x) 1 | . 1 1 Average Overweight (x) . | . . . Largest Inventory Capacity 15 | 8 15 15 Average Capacity 14 | 7 13 15 Most Carried 15 | 3 8 15 Average Carried 10 | 2 6 12 Final Capacity 15 | 8 15 15 Final Carried 15 | 3 8 15 Class Distribution -------------------- 100% | Mutant Dominant Class ---------------- Mutant | -10/Materials Mutant | -10/Subcaves Resources | -11 -10 -10 ----------- Run | Yrd Mat Sub Matter Collected 680 | 228 161 291 Remotely . | . . . Salvage Created 490 | 28 111 351 Parts 26 | 3 5 18 Haulers Intercepted 2 | . 2 . Recyclers Shooed . | . . . Parts Field Recycled . | . . . Retrieved Matter . | . . . Parts Self-Destructed 17 | . . 17 Prevented . | . . . Kills | -11 -10 -10 ------- Run | Yrd Mat Sub Combat Hostiles Destroyed 8 | . . 8 Guns 8 | . . 8 Classes Destroyed 4 | 1 1 2 Tunneler 1 | 1 . . Hauler 2 | . 2 . Grunt 2 | . . 2 Subdweller 6 | . . 6 Best Kill Streak 2 | 1 1 2 Combat Bots Only 2 | . . 2 Max Kills in Single Turn 1 | 1 1 1 Gunslinging . | . . . Exploded . | . . . Melee . | . . . Uniques/NPCs Destroyed . | . . . Combat | -11 -10 -10 -------- Run | Yrd Mat Sub Hostile Shots Fired 76 | . . 76 Missed 24 | . . 24 Hits 52 | . . 52 Projectile 52 | . . 52 AOE 2 | . . 2 Critical Strikes 3 | . . 3 Damage Taken 1246 | . . 1246 Core 254 | . . 254 Absorbed by Shields . | . . . Core Remaining (%) 100 | 100 . . Volleys Fired 49 | 1 8 40 Largest 2 | 2 2 2 Hottest 60 | 60 60 55 Shots Fired 98 | 2 16 80 Gun 98 | 2 16 80 Cannon . | . . . Launcher . | . . . Special . | . . . Kinetic 89 | 1 8 80 Thermal . | . . . Explosive . | . . . Electromagnetic 9 | 1 8 . Robot Hit Streak 10 | 1 7 10 Robot Miss Streak 3 | . 2 3 Penetration Max . | . . . Secondary Targets 1 | . . 1 Max Gunslinging Chain 1 | . . 1 Shots Hit Robots 64 | 1 12 51 Core Hits 25 | 1 4 20 Critical Kills . | . . . Critical Parts Destroyed . | . . . Critical Strikes 1 | . . 1 Destroy 1 | . . 1 Melee Attacks . | . . . Impact . | . . . Slashing . | . . . Piercing . | . . . Sneak Attacks . | . . . Combat Hostiles . | . . . Follow-up Attacks . | . . . Damage Inflicted 860 | 13 119 728 Guns 860 | 13 119 728 Cannons . | . . . Explosions . | . . . Melee . | . . . Ramming . | . . . Kinetic 784 | . 56 728 Thermal . | . . . Explosive . | . . . Electromagnetic 76 | 13 63 . Impact . | . . . Slashing . | . . . Piercing . | . . . Highest Corruption . | . . . Average Corruption . | . . . Corruption Purged . | . . . Corruption Blocked . | . . . Overload Shots . | . . . Overflow Damage . | . . . Projectiles . | . . . Explosions . | . . . Melee . | . . . Knockbacks . | . . . Impact . | . . . Kinetic . | . . . Secondary . | . . . Self-Inflicted Damage . | . . . Shots . | . . . Rammed . | . . . Targets Rammed . | . . . Kicked . | . . . Crushed . | . . . Highest Temperature 40 | 20 40 9 Average Temperature 19 | 15 20 9 Received Heat Transfer 252 | . . 252 Siege Activations . | . . . Martial Activations . | . . . Shielding Activations . | . . . Robots Disrupted . | . . . Combat Hostiles . | . . . Robots Corrupted . | . . . Combat Hostiles . | . . . Parts Fried . | . . . Impact Corruptions . | . . . Robots Melted . | . . . Combat Hostiles . | . . . Parts Melted 1 | . . 1 Heat Transferred . | . . . Parts Sabotaged . | . . . Parts Stolen . | . . . Parts Stripped . | . . . Power Chain Reactions . | . . . Alert | -11 -10 -10 ------- Run | Yrd Mat Sub Maximum Alert Level . | . . . Low Security (%) 100 | 100 100 . Level 1 . | . . . Level 2 . | . . . Level 3 . | . . . Level 4 . | . . . Level 5 . | . . . High Security . | . . . Max Security . | . . . Peak Influence 15 | 5 15 . Initial 3 | . 3 . Average 1 | . 1 . Influence Increases 85 | 5 30 50 Destroy 0b10 Robot/C 40 | . . 40 Destroy 0b10 Robot/NC 15 | 5 10 . Destroy Leader 14 | . 4 10 Successful Hack 16 | . 16 . Influence Decreases 85 | . 35 50 Entered New Map 2 | . 2 . Time Decay 83 | . 33 50 Squads Dispatched 1 | . 1 . Investigation 1 | . 1 . Extermination . | . . . Reinforcement . | . . . Assault . | . . . Garrison . | . . . Intercept . | . . . Searches Triggered . | . . . Construction Impeded . | . . . Haulers Reinforced . | . . . Active Scanning Responses . | . . . Cargo Convoy Interrupts . | . . . Stealth | -11 -10 -10 --------- Run | Yrd Mat Sub Distress Signals . | . . . Communications Jammed . | . . . Distress Signals . | . . . Times Spotted 14 | . . 14 Peak Tracking Total 4 | . . 4 Tactical Retreats . | . . . Traps | -11 -10 -10 ------- Run | Yrd Mat Sub Traps Triggered 1 | . . 1 Indirectly . | . . . Trap Hack Attempts . | . . . Triggered . | . . . Disarmed . | . . . Reprogrammed . | . . . Reused . | . . . Traps Extracted . | . . . Installed . | . . . Triggered . | . . . Machines | -11 -10 -10 ---------- Run | Yrd Mat Sub Machines Disabled . | . . . Max in Single Turn . | . . . Machines Repaired . | . . . Machines Dismantled . | . . . Machines Sabotaged . | . . . Overloaded Fab Kills . | . . . Hacking | -11 -10 -10 --------- Run | Yrd Mat Sub Machines Accessed 5 | . 4 1 Terminals 4 | . 4 . Fabricators . | . . . Repair Stations . | . . . Recycling Units . | . . . Scanalyzers . | . . . Garrison Access . | . . . Total Hacks 24 | . 19 5 Successful 11 | . 6 5 Failed 13 | . 13 . Catastrophic 1 | . 1 . Database Lockouts . | . . . Manual 17 | . 17 . Terminals 19 | . 19 . Fabricators . | . . . Repair Stations . | . . . Recycling Units . | . . . Scanalyzers . | . . . Garrison Access . | . . . Terminal Hacks 8 | . 3 5 Record 5 | . . 5 Terminal Index 1 | . 1 . Hauler Manifests 1 | . 1 . Registered Components 1 | . 1 . Fabricator Hacks . | . . . Repair Station Hacks . | . . . Recycling Unit Hacks . | . . . Scanalyzer . | . . . Garrison Access Hacks . | . . . Unauthorized Hacks 3 | . 3 . Terminals 3 | . 3 . Botnet 3 | . 3 . Fabricators . | . . . Repair Stations . | . . . Recycling Units . | . . . Scanalyzers . | . . . Garrison Access . | . . . Data Cores Recovered . | . . . Used . | . . . Hacking Detections 4 | . 4 . Full Trace Events 1 | . 1 . Feedback Events . | . . . Feedback Blocked . | . . . Robot Schematics Acquired . | . . . Robots Built . | . . . Authchips . | . . . Time . | . . . Total Robot Build Rating . | . . . Part Schematics Acquired . | . . . Parts Built . | . . . Authchips . | . . . Time . | . . . Total Part Build Rating . | . . . Parts Repaired . | . . . Time . | . . . Parts Recycled . | . . . Recycled Matter . | . . . Retrieved Matter . | . . . Retrieved Components . | . . . Parts Scanalyzed . | . . . Part Schematics Acquired . | . . . Parts Damaged . | . . . Bothacking | -11 -10 -10 ------------ Run | Yrd Mat Sub Used RIF Installer . | . . . Robots Hacked . | . . . Non-combat . | . . . Combat . | . . . Robot Hacks Applied . | . . . Relay Couplers Released . | . . . Fabnet Peak Effective % . | . . . Robots Rewired . | . . . Allies Hacked . | . . . Hacks Repelled . | . . . Allies | -11 -10 -10 -------- Run | Yrd Mat Sub Total Allies . | . . . Largest Group . | . . . Highest-Rated Group . | . . . Highest-Rated Ally . | . . . Total Orders . | . . . Ally Attacks . | . . . Total Damage . | . . . Kills . | . . . Allies Corrupted . | . . . Allies Melted . | . . . Intel | -11 -10 -10 ------- Run | Yrd Mat Sub Active Infowar (turns) 974 | 3 328 643 Terrain 974 | 3 328 643 Robot Analysis Total . | . . . Derelict Logs Recovered 1 | . . 1 Drone Launches . | . . . Drone Recoveries . | . . . Exploration | -11 -10 -10 ------------- Run | Yrd Mat Sub Turns Passed 1313 | 58 328 927 Spaces Moved 899 | 45 200 654 Core 1 | 1 . . Treads 24 | . . 24 Legs . | . . . Wheels 874 | 44 200 630 Hover . | . . . Flight . | . . . Fastest Speed 50 | 50 90 90 Average Speed 109 | 90 100 113 Slowest Speed 240 | 100 105 240 Overloaded Moves . | . . . Propulsion Burnouts . | . . . Robots Hopped . | . . . Potential Cave-ins . | . . . Cave-ins Triggered . | . . . Exploration Rate (%) 25 | 3 36 36 Regions Visited 2 Branch Regions 1 Pre-discovered Areas 2 | . . 2 Known Exits Taken . | . . . Unknown Exits Taken 2 | 1 1 . Scrap Searched 4 | . . 4 Spaces Dug . | . . . Terrain Destroyed . | . . . Melee . | . . . Projectile . | . . . AOE . | . . . Terrain Rammed . | . . . Walls Destroyed . | . . . Machines Disabled . | . . . Actions | -11 -10 -10 --------- Run | Yrd Mat Sub Total 1133 | 56 312 765 Wait 134 | 1 100 33 Move 897 | 44 199 654 Hop . | . . . Pick Up 23 | 3 4 16 Fast Attach 8 | 7 . 1 Attach 5 | . . 5 Detach 1 | . . 1 Swap 9 | . 1 8 Drop 7 | . . 7 Fire 49 | 1 8 40 Melee . | . . . Ram . | . . . Kick . | . . . Crush . | . . . Escape Stasis . | . . . Rewire . | . . . Trap . | . . . Miscellaneous . | . . . Route ------- -11/Scrapyard -10/Materials (discovered 2 exits: [*Min] / *Sub) -10/Subcaves (discovered 2 exits: [*Mat] / Rec) History --------- Turn | Location | Event 17 | -11/Scrapyard | Discovered new exit (range 15) 59 | -11/Scrapyard | Entered Materials 223 | -10/Materials | Discovered new exit (range 14) 302 | -10/Materials | Build established: Mutant 371 | -10/Materials | Discovered new exit (range 7) 387 | -10/Materials | Entered Subcaves 388 | -10/Subcaves | Approached by a straggling Scientist 389 | -10/Subcaves | Shifting Twisted Machinery released Sub. Power Source 401 | -10/Subcaves | Shifting Twisted Machinery released Battle Rifle 496 | -10/Subcaves | A swath of the cavern ceiling suddenly collapsed 624 | -10/Subcaves | Visited Clippyterm 627 | -10/Subcaves | Learned location of Deep Caves (-6) 627 | -10/Subcaves | Learned location of Section 7 (-2) 811 | -10/Subcaves | Identified exit to Recycling 906 | -10/Subcaves | Discovered new exit (range 7) 1144 | -10/Subcaves | Core integrity fell below 50% 1186 | -10/Subcaves | Lost 3 parts (2n1w) 1299 | -10/Subcaves | Ambushed by Subdweller buried in earth 1299 | -10/Subcaves | Ambushed by Subdweller buried in earth 1299 | -10/Subcaves | Ambushed by Subdweller buried in earth 1313 | -10/Subcaves | Core integrity fell below 20% 1314 | -10/Subcaves | Destroyed by Z7-GKW(R) with Subdweller Laser Last Messages --------------- Lgt. Armor Plating destroyed. Z7-GKW(R): "ARGHSUB!" 1W-KEZ(R): "HIDIE!" S9-JFT(R): "ARGHSUB!" Searching scrap... Found Shrapnel Trap. Found 37 Matter. Searching scrap... Found Battle Cannon. Found Sub. Beam Cannon. Found 58 Matter. Searching scrap... Found Multitool. Found Spk. Treads. Found 70 Matter. Subatomizers dissect the Battle Cannon. Acquired 5 matter. Lgt. Treads destroyed. Acquired 5 matter. The unstable cave ceiling collapses. Map ----- +----------------------------------------------------+ | ?????????????????????????????#???# #??#" #????? | | ??????????????????????????#??????# ##?# """"" ??? | | ???????????????????????????????### ### ""???? | | ?????????????????????#?????????# # """????? | | ???????????????????????????????## """ ?? ??? | | ???????????????????????????????## ## "" "??? | | ???????????????????????????#???# #?? ### "??" | | ???????????????????????????????##% #??? #?# "???? | | ??????????????????????????#????## ##??# ## ????? | | ???????????????????????????????# & #?# #" ????? | | ???????????????????????????????# ##? " "??????? | | ??????????????????????????????## #? # #???????? | | ?????????????????????????????## ### #????????? | | ?????????????????????????????# ### ##????????? | | ?????????????????????????????# !&# ##???????? | | ?????????????????????????????# & %&& ##??????? | | ?????????????????????????????## &%!# #??????? | | ??????????????????????????????# &#### ?? | | ???????????????????????######## #### # # ""? | | ??????????????????????## ; ## ##### "" ? | | ??????????????????????# # ; # ##??""?? | | ??????????????????????# ; # ## ##????? | | ??????????????????????# ; ; #### #????? | | ??????????????????????# RRR ##??# #????? | | ??????????????????????# ]% R% ###?## #???? | | ??????????????????????# &@]; #???# ###???? | | ??????????????????????# =%|##; #???## #?????? | | ??????????????????????######?# #????## ##?????? | | ????????????????????????????? ##?????####??????? | | ????????????????????????????? #????????????????? | | ???????????????????????????? ##????????????????? | | ????????????????????????????# #?????????????????? | | ????????????????????????????####?????????????????? | | ?????????????????????????????????????????????????? | | ?????????????????????????????????????????????????? | | ?????????????????????????????????????????????????? | | ?????????????????????????????????????????????????? | | ?????????????????????????????????????????????????? | | ?????????????????????????????????????????????????? | | ?????????????????????????????????????????????????? | | ?????????????????????????????????????????????????? | | ?????????????????????????????????????????????????? | | ?????????????????????????????????????????????????? | | ?????????????????????????????????????????????????? | | ?????????????????????????????????????????????????? | | ?????????????????????????????????????????????????? | | ?????????????????????????????????????????????????? | | ?????????????????????????????????????????????????? | | ?????????????????????????????????????????????????? | | ?????????????????????????????????????????????????? | +----------------------------------------------------+ Best States ------------- Heat Dissipation 25 Energy Generation 10 Energy Capacity 250 Matter Stores 300 Matter Capacity 300 Sight Range 16 Terrain Scan Range 16 Terrain Scan Density 10 Armor Coverage 150 Evasion (%) 42 Recoil Reduction 2 Item Schematics ----------------- None Robot Schematics ------------------ None Fabricated ------------ Nothing Repaired ---------- Nothing Alien Tech Used ----------------- None Achievements -------------- None Challenges ------------ None Game ------ Seed KineticWeldingUnit Manual? 0 Play Time 00:16:12 Cumulative 65.7 hours Start 2025.05.08 @ 15:06:37 End 2025.05.08 @ 15:22:20 Sessions 1 Manual Loads 0 Difficulty Rogue Special Mode None Game No. 56 Rogue 56 Adventurer 0 Explorer 0 Win Type - Total 1 Types 1/0/0/0/0/0/0/0/0/0 Lore% 38 Gallery% 45 Achievement% 42 Wizard Run 0 Options --------- Layout 1 ASCII 0 Keyboard 1 Movement Numpad Keybinds 0 Fullscreen 1 Font 32/SmallcapsGlow Map View 50x35 Zoom Use 0% Tactical HUD 0 Map Filters NONE Filters NONE Steam 1 RUN: 8dcf242c-c27c-49f5-80fe-797c22b028de